Cogmind - Beta 16 @@@ ROGUE MODE // 2025.10.26 @ 02:01:13 Player: x'z Result: Destroyed by G-34 Mercenary with Small Laser Performance ------------- Evolutions (1) 500 Regions Visited (3) 600 Robots Destroyed (28) 140 Value Destroyed (578) 578 Prototype IDs (4) 80 Alien Tech Used (0) 0 Bonus (0) 0 TOTAL SCORE: 1898 Bonus ------- None Cogmind --------- Core Integrity 0/400 Matter 295/300 Energy 100/100 System Corruption 5% Temperature Cool (6) Movement Core (150) Ox2 Location -9/Materials Parts ------- > --- POWER (1) -------- (None) > --- PROPULSION (2) --- (None) > --- UTILITY (4) ------ Improved Signal Interpreter ECM Suite Hacking Suite > --- WEAPON (2) ------- Heavy Particle Cannon > --- INVENTORY (5) ---- Advanced Weight Redist. System Hacking Suite Tractor Beam Heavy Particle Cannon Heavy Particle Cannon Peak State ------------ > --- POWER ------------ Ion Engine > --- PROPULSION ------- Armored Treads Armored Treads > --- UTILITY ---------- ECM Suite Hacking Suite Hacking Suite Hacking Suite > --- WEAPON ----------- Heavy Particle Cannon Heavy Particle Cannon > --- INVENTORY -------- Advanced Weight Redist. System Hacking Suite Tractor Beam Heavy Particle Cannon Heavy Particle Cannon [Rating: 24] Favorites ----------- Power Ion Engine Engine Ion Engine Propulsion Compact Wheel Treads Armored Treads Wheel Compact Wheel Utility Small Storage Unit Device Tractor Beam Storage Small Storage Unit Processor Improved Signal Interpreter Hackware Hacking Suite Weapon Heavy Particle Cannon Energy Gun Medium Laser Energy Cannon Heavy Particle Cannon Ballistic Gun Light Assault Rifle Special Weapon Plasma Flamer Build | -11 -10 -10 -9 ------- Run | Yrd Mat Min Mat Slots Evolved 2 | . . . 2 Power . | . . . . Propulsion . | . . . . Utility 2 | . . . 2 Weapon . | . . . . Parts Attached 24 | 4 5 2 13 Power 2 | 1 . . 1 Engine 2 | 1 . . 1 Core . | . . . . Reactor . | . . . . Propulsion 5 | 2 1 . 2 Treads 2 | . . . 2 Leg . | . . . . Wheel 3 | 2 1 . . Hover . | . . . . Flight . | . . . . Utility 8 | 1 1 . 6 Device 3 | . 1 . 2 Storage 1 | 1 . . . Processor 1 | . . . 1 Hackware 3 | . . . 3 Protection . | . . . . Artifact . | . . . . Weapon 9 | . 3 2 4 Energy Gun 3 | . 2 1 . Energy Cannon 4 | . . . 4 Ballistic Gun 1 | . 1 . . Ballistic Cannon . | . . . . Launcher . | . . . . Special Weapon 1 | . . 1 . Impact Weapon . | . . . . Slashing Weapon . | . . . . Piercing Weapon . | . . . . Special Melee Weapon . | . . . . Unidentified Prototypes . | . . . . Parts Lost 8 | . 1 1 6 Power 2 | . . . 2 Propulsion 2 | . . . 2 Utility 1 | . . . 1 Weapon 3 | . 1 1 1 Highest Loss Streak 2 | . 1 1 2 To Critical Strikes . | . . . . Average Backups 2 | 1 . 1 5 Power . | . . . . Propulsion . | . . 1 . Utility 1 | . . . 3 Weapon 1 | 1 . . 1 Tool/Special . | . . . . Unused Backups 4 | . . . 4 Power . | . . . . Propulsion . | . . . . Utility 2 | . . . 2 Weapon 2 | . . . 2 Tool/Special . | . . . . Average Slot Usage (%) 89 | . 84 94 85 Engine 11 | . 14 14 9 Treads 6 | . . . 13 Wheel 16 | . 28 28 4 Device 12 | . 1 14 13 Storage 8 | . 14 14 1 Processor 4 | . . . 8 Hackware 6 | . . . 13 Energy Gun 9 | . 21 14 1 Energy Cannon 9 | . . . 20 Ballistic Gun 2 | . 4 5 . Special Weapon 1 | . . 2 . Peak Build Rating 24 | 4 7 11 24 Average Rating 12 | 2 6 7 19 On Entrance 4 | . 4 7 7 Avg Prop Armor Cover (%) 13 | . . . 13 Naked Turns . | . . . . Heaviest Build 25 | 10 14 15 25 Greatest Support 40 | 26 32 32 40 Greatest Overweight (x) 6 | 3 . . 6 Average Overweight (x) . | . . . . Largest Inventory Capacity 8 | 8 8 8 8 Average Capacity 6 | 7 8 8 5 Most Carried 8 | 4 2 2 8 Average Carried 2 | 1 . 1 5 Final Capacity 8 | 8 8 8 5 Final Carried 5 | 2 1 1 5 Class Distribution -------------------- 85% | Mutant 14% | Hacker-Mutant Dominant Class ---------------- Mutant | -10/Materials Mutant | -10/Mines Mutant | -9/Materials Resources | -11 -10 -10 -9 ----------- Run | Yrd Mat Min Mat Matter Collected 575 | 240 48 44 243 Remotely 56 | . 12 44 . Salvage Created 785 | . 158 25 602 Parts 56 | . 11 2 43 Haulers Intercepted 1 | . . . 1 Recyclers Shooed 1 | . . . 1 Parts Field Recycled . | . . . . Retrieved Matter . | . . . . Parts Self-Destructed . | . . . . Prevented . | . . . . Parts Restored . | . . . . Kills | -11 -10 -10 -9 ------- Run | Yrd Mat Min Mat Combat Hostiles Destroyed 22 | . 4 3 15 Guns 5 | . 4 1 . Cannons 16 | . . 2 14 Classes Destroyed 9 | . 3 . 6 Builder 1 | . . . 1 Hauler 1 | . . . 1 Recycler 1 | . 1 . . Operator 2 | . . . 2 Watcher 1 | . . . 1 Swarmer 12 | . 3 3 6 Grunt 7 | . 1 . 6 Brawler 1 | . . . 1 Sentry 2 | . . . 2 Best Kill Streak 4 | . 4 2 4 Combat Bots Only 4 | . 4 2 3 Max Kills in Single Turn 1 | . 1 1 1 Gunslinging . | . . . . Exploded . | . . . . Melee . | . . . . Uniques/NPCs Destroyed . | . . . . Combat | -11 -10 -10 -9 -------- Run | Yrd Mat Min Mat Hostile Shots Fired 183 | . 27 34 122 Missed 33 | . 4 7 22 Hits 150 | . 23 27 100 Melee 4 | . . . 4 Projectile 146 | . 23 27 96 Critical Strikes 3 | . . 1 2 Damage Taken 1804 | . 209 251 1344 Core 475 | . 35 38 402 Absorbed by Shields . | . . . . Core Remaining (%) 85 | 100 . 70 . Volleys Fired 86 | . 17 22 47 Largest 2 | . 2 2 2 Hottest 150 | . 100 120 150 Shots Fired 144 | . 29 31 84 Gun 52 | . 29 23 . Cannon 84 | . . . 84 Launcher . | . . . . Special 8 | . . 8 . Kinetic 13 | . 3 10 . Thermal 131 | . 26 21 84 Explosive . | . . . . Electromagnetic . | . . . . Robot Hit Streak 7 | . 6 5 7 Robot Miss Streak 6 | . 3 6 6 Penetration Max . | . . . . Secondary Targets . | . . . . Shots Hit Robots 62 | . 14 11 37 Core Hits 31 | . 7 6 18 Critical Kills . | . . . . Critical Parts Destroyed . | . . . . Critical Strikes 5 | . 3 2 . Burn 5 | . 3 2 . Melee Attacks . | . . . . Impact . | . . . . Slashing . | . . . . Piercing . | . . . . Sneak Attacks . | . . . . Combat Hostiles . | . . . . Follow-up Attacks . | . . . . Damage Inflicted 1510 | . 167 147 1196 Guns 252 | . 167 85 . Cannons 1175 | . . . 1175 Explosions . | . . . . Melee . | . . . . Ramming 43 | . . 22 21 Kinetic 43 | . 20 23 . Thermal 1424 | . 147 102 1175 Explosive . | . . . . Electromagnetic . | . . . . Impact . | . . . . Slashing . | . . . . Piercing . | . . . . Highest Corruption 5 | . . 2 5 Average Corruption 2 | . . 2 5 Corruption Purged . | . . . . Corruption Blocked . | . . . . Effects 11 | . . 5 6 Message Errors 3 | . . 2 1 Heat Flow Errors 2 | . . . 2 Energy Discharges 2 | . . 1 1 Data Loss (minor) 3 | . . 2 1 Data Loss (major) 1 | . . . 1 Overload Shots . | . . . . Overflow Damage 50 | . . . 50 Projectiles 50 | . . . 50 Explosions . | . . . . Melee . | . . . . Knockbacks . | . . . . Impact . | . . . . Kinetic . | . . . . Secondary . | . . . . Self-Inflicted Damage 10 | . . 10 . Shots . | . . . . Rammed 13 | . . 3 10 Targets Rammed 13 | . . 3 10 Kicked . | . . . . Crushed . | . . . . Highest Temperature 607 | . 280 405 607 Average Temperature 229 | . 112 226 256 Received Heat Transfer 483 | . 48 63 372 Effects 30 | . . 4 26 Shutdowns 7 | . . 1 6 Energy Bleed 4 | . . 1 3 Interference 2 | . . . 2 Matter Decay 4 | . . . 4 Short Circuit 3 | . . 1 2 Damage (minor) 4 | . . 1 3 Damage (major) 3 | . . . 3 Damage (core) 3 | . . . 3 Siege Activations . | . . . . Martial Activations . | . . . . Shielding Activations . | . . . . Robots Disrupted . | . . . . Combat Hostiles . | . . . . Robots Corrupted . | . . . . Combat Hostiles . | . . . . Parts Fried . | . . . . Impact Corruptions . | . . . . Robots Melted 1 | . . . 1 Combat Hostiles 1 | . . . 1 Parts Melted 1 | . 1 . . Heat Transferred 2978 | . 666 573 1739 Parts Sabotaged . | . . . . Parts Stolen . | . . . . Parts Stripped . | . . . . Power Chain Reactions . | . . . . Alert | -11 -10 -10 -9 ------- Run | Yrd Mat Min Mat Maximum Alert Level 1 | . . . 1 Low Security (%) 88 | 100 100 100 76 Level 1 11 | . . . 23 Level 2 . | . . . . Level 3 . | . . . . Level 4 . | . . . . Level 5 . | . . . . High Security . | . . . . Max Security . | . . . . Peak Influence 275 | . 85 55 275 Initial 23 | . . 23 8 Average 49 | . 34 12 87 Influence Increases 797 | . 110 175 512 Destroy 0b10 Robot/C 440 | . 80 60 300 Destroy 0b10 Robot/NC 30 | . 5 . 25 Destroy Leader 94 | . 10 10 74 Successful Hack 13 | . . . 13 Disable Machine 30 | . . . 30 Destroy Structure 25 | . . . 25 Partial Spotted 15 | . . . 15 Lose Combat Pursuer 150 | . 15 105 30 Influence Decreases 549 | . 50 213 286 Entered New Map 51 | . . 37 14 Time Decay 418 | . 40 166 212 Lost Part 80 | . 10 10 60 Squads Dispatched 4 | . 2 . 2 Investigation 3 | . 1 . 2 Extermination . | . . . . Reinforcement 1 | . 1 . . Assault . | . . . . Garrison . | . . . . Intercept . | . . . . Searches Triggered . | . . . . Construction Impeded . | . . . . Haulers Reinforced . | . . . . Active Scanning Responses . | . . . . Cargo Convoy Interrupts . | . . . . Stealth | -11 -10 -10 -9 --------- Run | Yrd Mat Min Mat Distress Signals 1 | . . . 1 Communications Jammed . | . . . . Distress Signals . | . . . . Times Spotted 47 | . 10 13 24 Peak Tracking Total 8 | . 5 4 8 Tactical Retreats 7 | . 1 4 2 Traps | -11 -10 -10 -9 ------- Run | Yrd Mat Min Mat Traps Triggered 1 | . 1 . . Indirectly . | . . . . Trap Hack Attempts . | . . . . Triggered . | . . . . Disarmed . | . . . . Reprogrammed . | . . . . Reused . | . . . . Traps Extracted . | . . . . Installed . | . . . . Triggered . | . . . . Machines | -11 -10 -10 -9 ---------- Run | Yrd Mat Min Mat Machines Disabled 2 | . . . 2 Max in Single Turn 1 | . . . 1 Machines Repaired . | . . . . Machines Dismantled . | . . . . Machines Sabotaged . | . . . . Overloaded Fab Kills . | . . . . Hacking | -11 -10 -10 -9 --------- Run | Yrd Mat Min Mat Machines Accessed 6 | . . . 6 Terminals 6 | . . . 6 Fabricators . | . . . . Repair Stations . | . . . . Recycling Units . | . . . . Scanalyzers . | . . . . Garrison Access . | . . . . Total Hacks 18 | . . . 18 Successful 11 | . . . 11 Failed 5 | . . . 5 Catastrophic . | . . . . Database Lockouts 2 | . . . 2 Manual . | . . . . Terminals 18 | . . . 18 Fabricators . | . . . . Repair Stations . | . . . . Recycling Units . | . . . . Scanalyzers . | . . . . Garrison Access . | . . . . Terminal Hacks 11 | . . . 11 Record 4 | . . . 4 Prototype ID Bank 2 | . . . 2 Emergency Access Points 2 | . . . 2 Alert Level 2 | . . . 2 Recall Reinforcements 1 | . . . 1 Fabricator Hacks . | . . . . Repair Station Hacks . | . . . . Recycling Unit Hacks . | . . . . Scanalyzer . | . . . . Garrison Access Hacks . | . . . . Unauthorized Hacks . | . . . . Terminals . | . . . . Fabricators . | . . . . Repair Stations . | . . . . Recycling Units . | . . . . Scanalyzers . | . . . . Garrison Access . | . . . . Data Cores Recovered 2 | . . . 2 Used . | . . . . Hacking Detections 5 | . . . 5 Full Trace Events 2 | . . . 2 Feedback Events . | . . . . Feedback Blocked . | . . . . Robot Schematics Acquired . | . . . . Robots Built . | . . . . Authchips . | . . . . Time . | . . . . Total Robot Build Rating . | . . . . Part Schematics Acquired . | . . . . Parts Built . | . . . . Authchips . | . . . . Time . | . . . . Total Part Build Rating . | . . . . Part Studies Acquired . | . . . . Parts Repaired . | . . . . Time . | . . . . Parts Recycled . | . . . . Recycled Matter . | . . . . Retrieved Matter . | . . . . Retrieved Components . | . . . . Parts Scanalyzed . | . . . . Part Schematics Acquired . | . . . . Parts Damaged . | . . . . Bothacking | -11 -10 -10 -9 ------------ Run | Yrd Mat Min Mat Used RIF Installer . | . . . . Robots Hacked . | . . . . Non-combat . | . . . . Combat . | . . . . Robot Hacks Applied . | . . . . Relay Couplers Released . | . . . . Fabnet Peak Effective % . | . . . . Robots Rewired . | . . . . Allies Hacked . | . . . . Hacks Repelled . | . . . . Allies | -11 -10 -10 -9 -------- Run | Yrd Mat Min Mat Total Allies . | . . . . Largest Group . | . . . . Highest-Rated Group . | . . . . Highest-Rated Ally . | . . . . Total Orders . | . . . . Ally Attacks . | . . . . Total Damage . | . . . . Kills . | . . . . Allies Corrupted . | . . . . Allies Melted . | . . . . Intel | -11 -10 -10 -9 ------- Run | Yrd Mat Min Mat Active Infowar (turns) 376 | . . . 376 ECM 376 | . . . 376 Robot Analysis Total . | . . . . Derelict Logs Recovered 2 | . . 2 . Drone Launches . | . . . . Drone Recoveries . | . . . . Exploration | -11 -10 -10 -9 ------------- Run | Yrd Mat Min Mat Turns Passed 1578 | 65 170 611 732 Spaces Moved 1068 | 48 111 577 332 Core 50 | 23 . . 27 Treads 184 | . . . 184 Legs . | . . . . Wheels 834 | 25 111 577 121 Hover . | . . . . Flight . | . . . . Fastest Speed 50 | 50 90 90 90 Average Speed 112 | 114 93 93 150 Slowest Speed 350 | 200 100 100 350 Overloaded Moves . | . . . . Propulsion Burnouts . | . . . . Robots Hopped . | . . . . Potential Cave-ins . | . . . . Cave-ins Triggered . | . . . . Exploration Rate (%) 37 | 4 26 89 29 Regions Visited 3 Branch Regions 1 Pre-discovered Areas 1 | . . 1 . Known Exits Taken 1 | . . 1 . Unknown Exits Taken 2 | 1 1 . . Scrap Searched 1 | . . 1 . Spaces Dug . | . . . . Terrain Destroyed 24 | . . . 24 Melee . | . . . . Projectile 24 | . . . 24 AOE . | . . . . Terrain Rammed . | . . . . Walls Destroyed . | . . . . Machines Disabled . | . . . . Actions | -11 -10 -10 -9 --------- Run | Yrd Mat Min Mat Total 1289 | 57 148 613 471 Wait 65 | . 13 5 47 Move 1065 | 47 110 576 332 Hop . | . . . . Pick Up 24 | 6 3 2 13 Fast Attach 5 | . . . 5 Attach 14 | 4 4 2 4 Detach . | . . . . Swap 7 | . 1 2 4 Drop 10 | . . 1 9 Fire 86 | . 17 22 47 Melee . | . . . . Ram 3 | . . 3 . Kick . | . . . . Crush 10 | . . . 10 Escape Stasis . | . . . . Rewire . | . . . . Trap . | . . . . Miscellaneous . | . . . . Route ------- -11/Scrapyard -10/Materials -10/Mines (discovered 3 exits: *Mat x2 / [*Exi]) -9/Materials (discovered 1 exit: *Min) History --------- Turn | Location | Event 3 | -11/Scrapyard | Discovered new exit (range 15) 66 | -11/Scrapyard | Entered Materials 221 | -10/Materials | Discovered new exit (range 13) 236 | -10/Materials | Entered Mines 241 | -10/Mines | Learned location of Storage (-8) 309 | -10/Mines | Build established: Mutant 355 | -10/Mines | A weapon hastily lodged in a ceiling crevice suddenly fell to the ground 528 | -10/Mines | Discovered new exit (range 11) 569 | -10/Mines | Identified exit to Materials 766 | -10/Mines | Deemed a non-threat by the Exiles lab entrance 766 | -10/Mines | Discovered new exit (range 5) 847 | -10/Mines | Entered Materials 847 | -9/Materials | Evolved 2 slots: Utility x2 1013 | -9/Materials | Central database locked down 1013 | -9/Materials | Central database locked down 1372 | -9/Materials | Core integrity fell below 50% 1437 | -9/Materials | Core integrity fell below 20% 1559 | -9/Materials | Discovered new exit (range 12) 1578 | -9/Materials | Identified exit to Mines 1579 | -9/Materials | Destroyed by G-34 Mercenary with Small Laser Last Messages --------------- Connecting with Terminal... >>Alert(Check) Current Alert Level: 1-I >>Recall(Reinforcements) Establishing remote squad link... No tasked reinforcement squads found. >>Access(Emergency) Found 2 emergency access doors: (56,32) (42,51) Map updated. ALERT: Suspicious activity at Terminal M008. Dispatching Investigation squad. R-06 Scavenger collects Lgt. Assault Rifle. EXIT=FOUND K-01 Serf collects debris. Hvy. Particle Cannon destroyed. Critical hit (Burn: +37). System corrupted: Component data lost. EXIT=IDENTIFIED: MINES Map ----- +----------------------------------------------------+ | ????????????????????????? ???????????????????????? | | ????????????????????????? ???????????????????????? | | ??????????????????????###+###????????????????????? | | ??????????????????????? #????????????????????? | | ??????????????????????? #????????????????????? | | ??????????????????????? +????????????????????? | | ??????????????????????? #????????????????????? | | ??????????????????????? #????????????????????? | | ???????????????????????# #?????????????????????? | | ???????????????????????# #?????+???????????????? | | ??????????????#+######## #?????????????????????? | | ?????????????## "T" " #?????????????????????? | | ?????????????# # #?????????????????????? | | ###??????????## # g#????? ??????????????? | | ""#???????????# #g # ???????????????? | | Y"###?????????# r + ??????????????? | | #?????????# """ # # ??????????????? | | #?????????# """%[ # #?????????????????????? | | "" #?????????# """= # #?????????????????????? | | R" +?????????# %[ # #?????????????????????? | | "" #?????????####""%### #?????????????????????? | | #????????????#%=%#?# #?????????????????????? | | #????????????##=#### ####??????????????????? | | #????????????##[### "#??????????????????? | | #????????????#" "## ""#??????????????????? | | #####????????## ### r@ ||#??????????????????? | | # !!#?????##??# #?# r> ""#??????????????????? | | # !#?????# #?# #?# ||#??????????????????? | | # =#??????####+### ""#??????????????????? | | # =#??????# # "#??????????????????? | | # !!#??????# % ## ####??????????????????? | | # !#??????# ## #?????????????????????? | | # #####??????# ## ##????????????????????? | | # ##?????????# ## ##????????????????????? | | # [############ ## ##????????????????????? | | # =%# ######+## #????????????????????? | | # !# #### % #????????????????????? | | # *# """ +%[% % % + ???????????????????? | | [%# """ " #### #????????????????????? | | # # """"" "###### #????????????????????? | | # + """"" T##???# ######????????????????????? | | # # """ "#????# ?????????????????????? | | # # #????#/######"#????????????????????? | | # ###########???? ?????# #???????????????????? | | #????????????? ??????##???????????????????? | | " ! #????????????? ???????????????????????????? | | "T #?????????????/ ??????????????????????????? | | #?????????????##/#??????????????????????????? | | #??????????????? ???????????????????????????? | | ######??????????????? ???????????????????????????? | +----------------------------------------------------+ Best States ------------- Heat Dissipation 28 Energy Generation 12 Energy Capacity 265 Matter Stores 300 Matter Capacity 300 Sight Range 16 Terrain Scan Density 10 ECM Strength 1 Additional Mass Support 6 Evasion (%) 42 Recoil Reduction 2 Offensive Hacking 30 Item Schematics ----------------- None Robot Schematics ------------------ None Fabricated ------------ Nothing Repaired ---------- Nothing Studied --------- None Alien Tech Used ----------------- None Achievements -------------- None Challenges ------------ None Game ------ Seed FireShiftPropulsion Manual? 0 Play Time 00:25:09 Cumulative 4.8 hours Start 2025.10.26 @ 01:39:08 End 2025.10.26 @ 02:01:13 Sessions 1 Manual Loads 0 Difficulty Rogue Special Mode None Game No. 14 Rogue 14 Adventurer 0 Explorer 0 Win Type - Total 0 Types 0/0/0/0/0/0/0/0/0/0 Lore% 2 Gallery% 10 Achievement% 9 Wizard Run 0 Options --------- Layout 1 ASCII 0 Keyboard 0 Movement Numpad Keybinds 0 Fullscreen 1 Font 32/SmallcapsGlow Map View 50x35 Zoom Use 0% Tactical HUD 0 Map Filters NONE Filters NONE Steam 1 RUN: 3e7a7afe-9bf6-4bb3-9605-ee499cd84471